bitfinex-derivatives/quotes_SOLF0:USTF0_20251224
["timestamp","ask_amount","ask_price","bid_price","bid_amount"]
[1766555994038,0.0546819,121.43,121.39,8.93]
[1766556000237,0.0546819,121.43,121.39,16.349]
[1766556000442,32.13219785,121.48,121.4,9.46]
[1766556000835,32.13219785,121.48,121.4,16.8783]
[1766556001441,0.06194037,121.45,121.43,0.05923369]
[1766556002338,31.03,121.48,121.43,9.70923369]
[1766556003041,31.03,121.48,121.43,0.05923369]
[1766556003429,31.08834406,121.47,121.43,0.05923369]
[1766556009746,31.03,121.45,121.4,97.3]
[1766556010742,0.06105203,121.44,121.41,0.05233541]
[1766556010946,31.09105203,121.44,121.41,0.05233541]
[1766556013052,31.09105203,121.44,121.41,0.00233541]
[1766556015746,0.06105203,121.44,121.41,0.00233541]
[1766556017545,97.28,121.5,121.42,23.68]
[1766556017747,2.0512174,121.53,121.44,23.76]
[1766556017950,99.3312174,121.53,121.44,23.76]
[1766556018352,99.3312174,121.53,121.45,7.4153]
[1766556018549,97.28,121.53,121.48,0.06254205]
[1766556019549,0.05511411,121.52,121.48,0.06254205]
[1766556025271,31.08511411,121.52,121.48,0.00254205]
[1766556028781,31.03,121.5,121.43,25.70799]
[1766556029281,31.03,121.5,121.43,1.51799]
[1766556029672,31.08824976,121.48,121.45,0.05342364]
[1766556034179,31.08824976,121.48,121.45,0.00342364]
[1766556050291,31.08824976,121.48,121.43,0.00141364]
[1766556051292,31.08824976,121.48,121.44,0.0579581]
[1766556053695,31.08824976,121.48,121.43,0.00141364]
[1766556054797,31.08824976,121.48,121.44,0.05484348]
[1766556055196,31.08824976,121.48,121.44,0.00484348]
[1766556073906,0.05824976,121.48,121.44,26.18484348]
[1766556076007,131.53,121.51,121.44,26.18484348]
[1766556076513,34.27,121.5,121.44,26.18484348]
[1766556077212,0.0607239,121.48,121.44,26.18484348]
[1766556092440,0.0007239,121.48,121.44,26.18484348]
[1766556093240,34.3307239,121.48,121.44,0.00484348]
[1766556096643,32.5,121.46,121.44,0.00484348]
[1766556097038,131.0730743,121.48,121.44,0.00484348]
[1766556097238,32.5,121.47,121.44,0.00484348]
[1766556131870,98.5723504,121.52,121.44,25.84484348]
[1766556132071,32.9223504,121.5,121.44,25.84]
[1766556132477,32.9223504,121.5,121.43,15.33474414]
[1766556132978,32.97600926,121.48,121.45,0.06314939]
[1766556134373,31.66365886,121.48,121.45,0.06314939]
[1766556135379,31.66365886,121.48,121.45,0.00314939]
[1766556135572,31.61,121.46,121.45,0.00314939]
[1766556136879,0.05365886,121.48,121.45,0.00314939]
[1766556136880,31.66365886,121.48,121.45,0.00314939]
[1766556150196,33.71448022,121.48,121.45,0.00314939]
[1766556150498,33.71448022,121.48,121.42,25.86]
[1766556151298,33.71448022,121.48,121.44,0.05545198]
[1766556151497,31.66365886,121.48,121.44,0.05545198]
[1766556158901,21.36928784,121.48,121.44,0.05545198]
[1766556159904,0.05433274,121.47,121.44,0.05545198]
[1766556168914,21.36928784,121.48,121.44,0.05545198]
[1766556170015,0.05675241,121.47,121.44,0.05545198]
[1766556172017,31.49675241,121.47,121.44,0.05545198]
[1766556177923,5.81755241,121.47,121.44,0.05545198]
[1766556178122,5.241e-05,121.47,121.44,0.05545198]
[1766556178523,97.26,121.49,121.44,0.05545198]
[1766556178925,0.05573418,121.48,121.44,0.05545198]
[1766556180124,31.49573418,121.48,121.44,0.05545198]
[1766556192431,31.49573418,121.48,121.42,15.33474414]
[1766556192637,33.26,121.46,121.41,104.6777]
[1766556193538,0.05685947,121.45,121.42,0.0630561]
[1766556193739,33.26,121.46,121.42,0.0630561]
[1766556194631,0.06010207,121.45,121.42,0.0630561]
[1766556194837,2.07e-06,121.45,121.42,0.0630561]
[1766556195738,0.06295964,121.45,121.42,0.0630561]
[1766556196343,99.31082136,121.49,121.42,0.0630561]
[1766556197138,2.05082136,121.51,121.44,31.1]
[1766556197341,0.05338306,121.49,121.46,0.05493132]
[1766556197541,2.05082136,121.51,121.46,0.05493132]
[1766556197542,99.31082136,121.53,121.46,7.46963132]
[1766556197748,99.31082136,121.53,121.46,7.4147]
[1766556198446,33.26,121.52,121.46,7.4147]
[1766556198637,0.05835569,121.5,121.48,0.05201642]
[1766556198837,33.31835569,121.5,121.48,0.00201642]
[1766556203333,1.949e-05,121.5,121.48,0.00201642]
[1766556204346,0.06030565,121.5,121.48,0.00201642]
[1766556206454,0.06028616,121.5,121.48,0.00201642]
[1766556207937,8.616e-05,121.51,121.48,0.00201642]
[1766556208646,1.31210632,121.54,121.48,7.41551642]
[1766556212468,1.31210632,121.52,121.44,147.3902]
[1766556212758,1.31210632,121.5,121.44,147.3902]
[1766556213353,1.31210632,121.5,121.45,7.416]
[1766556213554,1.31210632,121.5,121.46,0.06254237]
[1766556213952,1.31210632,121.5,121.46,0.00254237]
[1766556214265,1.31210632,121.5,121.42,97.24]
[1766556214266,1.31210632,121.48,121.42,97.24]
[1766556214862,1.31210632,121.48,121.41,29.93]
[1766556215165,0.05871423,121.46,121.43,0.06143115]
[1766556215861,1.31210632,121.44,121.36,145.3814]
[1766556216070,1.31210632,121.42,121.34,29.93]
[1766556216369,1.31210632,121.4,121.34,29.93]
[1766556216863,0.06170962,121.38,121.36,0.06264559]
[1766556217764,0.06170962,121.38,121.36,0.00264559]
[1766556218165,1.37381594,121.38,121.36,0.00264559]
[1766556218367,1.37381594,121.38,121.3,250.1236]
[1766556218566,1.31210632,121.38,121.3,250.1236]
[1766556218773,1.31210632,121.38,121.31,29.93]
[1766556219375,0.06342469,121.36,121.33,0.06096916]
[1766556219769,1.31210632,121.34,121.29,29.93]
[1766556220776,0.05641094,121.33,121.3,0.05749294]
[1766556221175,0.05641094,121.33,121.27,29.93]
[1766556222172,0.05641094,121.33,121.29,0.05372053]
[1766556223066,0.05641094,121.33,121.29,29.98372053]
[1766556233089,0.05641094,121.33,121.29,0.05372053]
[1766556234295,0.05641094,121.33,121.29,29.98372053]
[1766556236492,1.31210632,121.36,121.29,37.40942053]
[1766556236793,97.36,121.37,121.31,29.93]
[1766556237493,0.05783691,121.35,121.33,0.05591399]
[1766556239795,97.36,121.37,121.33,0.05591399]
[1766556240293,97.36,121.37,121.33,29.98591399]
[1766556240494,1.31210632,121.41,121.33,29.98591399]
[1766556240795,1.31210632,121.41,121.36,0.05840659]
[1766556241195,97.36,121.42,121.36,0.05840659]
[1766556241196,97.36,121.42,121.36,30.22840659]
[1766556241896,0.05688562,121.4,121.36,30.22840659]
[1766556242393,1.31210632,121.43,121.36,30.22840659]
[1766556242584,1.31210632,121.41,121.36,0.05840659]
[1766556242782,1.31210632,121.41,121.34,30.17]
[1766556243396,0.05889703,121.39,121.36,0.05388906]
[1766556245590,1.37100335,121.39,121.36,0.00388906]
[1766556245792,1.37100335,121.39,121.32,30.17]
[1766556245995,1.31210632,121.37,121.32,30.17]
[1766556246797,0.05598987,121.36,121.33,0.06064773]
[1766556247199,0.05598987,121.36,121.33,0.00064773]
[1766556248294,1.31210632,121.35,121.29,30.17]
[1766556248499,1.31210632,121.33,121.27,30.17]
[1766556249298,0.06122019,121.31,121.29,0.05262826]
[1766556250395,1.37332651,121.31,121.25,127.51]
[1766556251194,0.06122019,121.31,121.26,30.17]
[1766556251397,0.05815335,121.3,121.26,30.17]
[1766556251595,0.05815335,121.3,121.27,0.06101677]
[1766556252192,0.05815335,121.3,121.24,30.17]
[1766556252395,1.31210632,121.29,121.22,127.51]
[1766556252594,1.31210632,121.29,121.22,30.17]
[1766556253294,0.05930563,121.27,121.24,0.0595532]
[1766556256095,0.05930563,121.27,121.24,30.2295532]
[1766556256295,1.31210632,121.29,121.24,30.2295532]
[1766556257193,0.05846909,121.28,121.24,30.2295532]
[1766556259509,0.05846909,121.28,121.21,30.17]
[1766556259510,1.31210632,121.27,121.21,30.17]
[1766556260402,0.05341483,121.25,121.23,0.05276839]
[1766556261097,0.00341483,121.25,121.23,30.22276839]
[1766556263203,7.4245,121.32,121.23,30.22276839]
[1766556263409,97.4,121.31,121.23,30.17]
[1766556264212,0.06152414,121.28,121.26,0.05752643]
[1766556267714,0.06152414,121.28,121.24,30.17]
[1766556268821,0.06152414,121.28,121.25,0.05580425]
[1766556269314,0.06152414,121.28,121.22,30.17]
[1766556269519,2.05757869,121.29,121.22,30.17]
[1766556270410,0.06181703,121.27,121.24,0.05823392]
[1766556274413,2.11939572,121.27,121.22,30.17]
[1766556274910,0.06181703,121.27,121.22,30.17]
[1766556275321,0.06181703,121.27,121.23,0.05312634]
[1766556278622,0.06181703,121.27,121.23,28.69312634]
[1766556278813,99.47757869,121.31,121.23,28.69312634]
[1766556279014,99.47757869,121.31,121.23,28.64]
[1766556279924,0.05327051,121.28,121.26,0.05713271]
[1766556280122,0.05327051,121.28,121.23,28.64]
[1766556281023,0.05327051,121.28,121.24,0.05503928]
[1766556281724,0.05327051,121.28,121.21,28.64]
[1766556282428,117.59497869,121.27,121.17,28.64]
[1766556282622,13.57757869,121.21,121.11,5.1008236]
[1766556282816,0.05349464,121.17,121.11,5.1008236]
[1766556283221,0.00349464,121.17,121.12,115.6723]
[1766556284221,33.86,121.23,121.13,123.16806625]
[1766556284522,108.95,121.23,121.13,123.1047]
[1766556284722,108.95,121.23,121.14,28.64]
[1766556285125,0.05595507,121.2,121.17,0.06209342]
[1766556289031,13.30757869,121.19,121.12,28.64]
[1766556289538,11.25,121.19,121.12,28.64]
[1766556290036,0.05275962,121.17,121.14,0.06225766]
[1766556292243,0.00275962,121.17,121.14,28.70225766]
[1766556296137,0.00275962,121.17,121.16,28.64]
[1766556300141,0.00275962,121.17,121.16,126.12]
[1766556301143,13.23757869,121.25,121.17,28.43]
[1766556302138,0.06067874,121.22,121.2,0.05762456]
[1766556308040,0.00067874,121.22,121.2,28.48762456]
[1766556310246,0.00067874,121.22,121.2,0.05762456]
[1766556311039,10.97067874,121.22,121.16,28.43]
[1766556312143,10.97067874,121.22,121.18,0.06198254]
[1766556312846,10.97067874,121.22,121.16,28.43]
[1766556313843,10.93,121.2,121.13,28.43]
[1766556314944,0.05495262,121.18,121.15,0.05929259]
[1766556317143,10.94495262,121.18,121.15,0.05929259]
[1766556318651,0.05495262,121.18,121.15,0.05929259]
[1766556322647,12.18383162,121.18,121.11,40.9677236]
[1766556322857,12.18383162,121.18,121.12,28.43]
[1766556323055,10.86495262,121.18,121.12,28.43]
[1766556323661,10.86495262,121.18,121.14,0.05225942]
[1766556332570,108.36495262,121.18,121.14,0.05225942]
[1766556333971,10.63,121.17,121.11,32.6708236]
[1766556334170,11.948879,121.17,121.11,32.6708236]
[1766556335182,0.05961732,121.15,121.13,0.05697503]
[1766556335883,11.848879,121.2,121.13,27.08697503]
[1766556336084,11.848879,121.2,121.13,27.03]
[1766556336085,109.348879,121.2,121.13,27.03]
[1766556336872,0.05744043,121.18,121.15,0.05366885]
[1766556345381,11.87631943,121.18,121.13,27.03]
[1766556345582,11.87631943,121.18,121.11,32.1308236]
[1766556345981,1.318879,121.16,121.11,32.1308236]
[1766556346384,0.05583984,121.15,121.12,0.05989018]
[1766556351190,1.318879,121.14,121.11,4.08622795]
[1766556352189,1.318879,121.14,121.11,4.12890596]
[1766556352785,11.81471884,121.15,121.11,4.12890596]
[1766556353889,1.37471884,121.15,121.11,31.15890596]
[1766556356593,1.37471884,121.15,121.11,4.12890596]
[1766556357199,0.05583984,121.15,121.11,31.15890596]
[1766556357881,97.52,121.17,121.11,31.15890596]
[1766556358797,0.05725956,121.15,121.11,31.15890596]
[1766556358998,97.52,121.17,121.11,31.15890596]
[1766556359199,97.52,121.17,121.12,27.03]
[1766556359989,0.00279316,121.16,121.12,27.03]
[1766556360590,0.00279316,121.16,121.13,27.03]
[1766556372219,0.00279316,121.16,121.11,30.17890596]
[1766556377017,0.00279316,121.16,121.12,26.05]
[1766556387423,29.24415973,121.16,121.11,4.12890596]
[1766556388731,27.18,121.15,121.11,4.12890596]
[1766556389120,27.18,121.15,121.11,5.96e-06]
[1766556389427,124.7,121.14,121.11,5.96e-06]
[1766556389933,126.76136657,121.14,121.08,26.05]
[1766556390626,126.76136657,121.14,121.06,123.57]
[1766556390627,27.18,121.13,121.06,123.57]
[1766556390817,0.05633185,121.11,121.08,0.05679331]
[1766556393340,27.47633185,121.11,121.04,27.9]
[1766556394039,97.52,121.1,121.04,27.9]
[1766556394326,124.94,121.1,121.04,27.9]
[1766556394528,0.06006422,121.08,121.06,0.05559735]
[1766556395433,6.422e-05,121.08,121.06,27.95559735]
[1766556396127,97.54,121.11,121.06,27.95559735]
[1766556397234,0.05765099,121.1,121.06,27.95559735]
[1766556397729,97.59765099,121.1,121.06,27.95559735]
[1766556398732,97.59765099,121.1,121.06,0.05559735]
[1766556399428,26.58,121.04,120.91,117.93356657]
[1766556399620,28.64136657,120.99,120.92,28.08]
[1766556399934,97.54,120.98,120.92,28.08]
[1766556400539,0.06121651,120.96,120.94,0.00321061]
[1766556400831,26.58,121.03,120.95,28.08]
[1766556401027,26.58,121.03,120.96,28.08]
[1766556401420,124.14,121.03,120.96,28.08]
[1766556401743,0.06215172,121.01,120.98,0.06110806]
[1766556402432,0.06215172,121.01,120.91,28.08]
[1766556402433,2.06136657,120.99,120.91,28.08]
[1766556402631,126.20136657,120.99,120.91,28.08]
[1766556403137,124.14,120.99,120.91,28.08]
[1766556403334,0.05339514,120.96,120.94,0.0552167]
[1766556403929,26.58,121.02,120.95,28.08]
[1766556404125,126.20136657,121.04,120.95,28.08]
[1766556404328,26.58,121.03,120.95,28.08]
[1766556404629,28.64136657,121.02,120.93,28.08]
[1766556405031,0.05647099,120.99,120.96,0.05571542]
[1766556405739,0.05647099,120.99,120.96,0.00232028]
[1766556408630,0.05647099,120.99,120.91,7.4489]
[1766556408631,26.63647099,120.99,120.91,28.08]
[1766556408834,26.58,120.99,120.91,28.08]
[1766556409133,26.58,120.99,120.86,115.9279]
[1766556409134,26.58,120.95,120.88,28.08]
[1766556409432,124.2,120.95,120.88,28.08]
[1766556409634,0.06170161,120.93,120.9,0.06185006]
[1766556410026,28.64136657,120.92,120.85,28.08]
[1766556410232,97.62,120.91,120.85,28.08]
[1766556410427,124.2,120.91,120.82,144.0443]
[1766556410628,124.2,120.91,120.83,28.08]
[1766556411029,0.06161471,120.88,120.83,28.08]
[1766556411228,0.06161471,120.88,120.84,28.08]
[1766556411426,26.58,120.97,120.9,28.08]
[1766556412344,0.05600871,120.95,120.92,0.06193674]
[1766556412731,26.58,120.94,120.84,125.72]
[1766556413037,26.58,120.94,120.85,28.08]
[1766556413736,0.059212,120.91,120.85,28.08]
[1766556417045,26.58,120.97,120.88,28.08]
[1766556417247,124.24,120.97,120.88,28.08]
[1766556418047,0.05280108,120.94,120.91,0.06101142]
[1766556419938,26.58,121.03,120.93,28.08]
[1766556420145,124.26,121.02,120.93,28.08]
[1766556420741,26.58,121.01,120.93,28.08]
[1766556420948,26.64129688,120.98,120.9,28.08]
[1766556421142,122.29,120.97,120.9,28.08]
[1766556421346,24.61,120.96,120.86,24.13]
[1766556421545,24.61,120.94,120.86,24.13]
[1766556421841,115.8463,120.95,120.86,24.13]
[1766556421842,122.29,120.93,120.86,24.13]
[1766556422050,0.05516227,120.91,120.88,0.05864836]
[1766556423438,97.68,120.95,120.88,24.18864836]
[1766556424245,122.29,120.95,120.88,0.05864836]
[1766556424440,0.05446106,120.93,120.88,0.05864836]
[1766556425149,24.66446106,120.93,120.88,0.05864836]
[1766556426542,140.52916106,120.93,120.88,0.05864836]
[1766556426847,24.61,120.91,120.82,24.13]
[1766556427047,97.68,120.9,120.82,24.13]
[1766556427850,0.05220074,120.87,120.85,0.05550204]
[1766556428349,0.00220074,120.87,120.85,0.05550204]
[1766556430241,122.31,120.91,120.85,0.05550204]
[1766556430445,24.61,120.91,120.85,0.05550204]
[1766556430652,97.7,120.92,120.85,24.18550204]
[1766556430954,97.7,120.92,120.85,24.13]
[1766556431449,0.05631576,120.9,120.87,0.0577932]
[1766556435055,24.66631576,120.9,120.83,24.13]
[1766556435354,24.61,120.9,120.83,24.13]
[1766556436249,0.05969574,120.88,120.85,0.04990958]
[1766556436454,0.05969574,120.88,120.8,24.13]
[1766556436655,97.72,120.88,120.8,24.13]
[1766556437359,0.05542738,120.85,120.8,24.13]
[1766556437842,24.61,120.84,120.79,5.15636398]
[1766556438044,24.61,120.84,120.73,24.13]
[1766556438045,2.0704426,120.81,120.73,24.13]
[1766556438351,24.61,120.77,120.64,140.2628]
[1766556438551,2.12477727,120.72,120.64,24.13]
[1766556438752,24.61,120.74,120.65,24.13]
[1766556439058,26.6804426,120.73,120.65,24.13]
[1766556439363,2.0704426,120.73,120.65,24.13]
[1766556439549,2.0704426,120.69,120.62,24.13]
[1766556439750,26.6804426,120.71,120.64,0.05746268]
[1766556439751,0.0529597,120.67,120.64,0.05746268]
[1766556440245,0.0529597,120.67,120.59,24.13]
[1766556440449,24.61,120.68,120.59,24.13]
[1766556440645,29.88599943,120.69,120.61,24.13]
[1766556440858,2.892e-05,120.69,120.65,24.13]
[1766556441654,2.892e-05,120.69,120.66,116.1153]
[1766556441959,2.892e-05,120.69,120.68,24.13]
[1766556442159,24.61,120.77,120.68,24.13]
[1766556442860,140.628,120.77,120.68,24.13]
[1766556443058,0.05501691,120.74,120.71,0.05407306]
[1766556444755,140.6706,120.73,120.63,24.13]
[1766556445062,24.61,120.73,120.63,24.13]
[1766556445963,0.05598888,120.69,120.67,0.0600716]
[1766556446668,0.05598888,120.69,120.63,24.13]
[1766556446856,140.7267,120.67,120.59,24.13]
[1766556447057,24.61,120.65,120.56,24.13]
[1766556447255,116.146,120.64,120.56,24.13]
[1766556447455,0.05363396,120.61,120.56,24.13]
[1766556447852,0.05363396,120.61,120.51,119.42459666]
[1766556447853,0.05363396,120.61,120.52,24.13]
[1766556448159,0.05663782,120.58,120.52,24.13]
[1766556448473,0.05663782,120.58,120.53,24.13]
[1766556448652,122.41,120.63,120.53,24.13]
[1766556448855,238.5662,120.63,120.53,24.13]
[1766556449154,97.8,120.63,120.55,24.13]
[1766556449764,0.00280991,120.6,120.58,0.0570305]
[1766556450264,24.61,120.66,120.58,0.0570305]
[1766556450459,97.82,120.67,120.58,24.13]
[1766556450854,143.86829666,120.69,120.6,116.1762]
[1766556450855,24.61,120.69,120.6,116.1762]
[1766556451060,138.8453,120.7,120.61,24.13]
[1766556451266,0.05582347,120.67,120.64,0.06213903]
[1766556455764,0.05582347,120.67,120.61,24.13]
[1766556456069,116.1345,120.65,120.57,23.35]
[1766556456268,139.2345,120.65,120.57,23.35]
[1766556456970,0.05946012,120.62,120.6,0.04860908]
[1766556457557,97.86,120.66,120.6,0.04860908]
[1766556458158,23.1,120.68,120.6,0.04860908]
[1766556458362,23.1,120.68,120.59,23.35]
[1766556458562,23.1,120.68,120.62,0.06030261]
[1766556458563,0.06287723,120.65,120.62,0.06030261]
[1766556459178,0.00287723,120.65,120.62,0.06030261]
[1766556459677,139.2441,120.64,120.56,23.35]
[1766556460063,139.224,120.66,120.56,23.35]
[1766556460564,139.2478,120.64,120.56,23.35]
[1766556460772,0.05394162,120.61,120.53,121.23]
[1766556460973,116.1533,120.63,120.54,23.35]
[1766556461566,7.467,120.63,120.54,23.35]
[1766556461766,0.06137473,120.6,120.57,0.05473277]
[1766556462380,0.06137473,120.6,120.54,23.35]
[1766556462968,0.00137473,120.6,120.59,23.35]
[1766556463173,23.1,120.7,120.6,23.35]
[1766556463174,139.183,120.7,120.6,23.35]
[1766556463870,146.6455,120.7,120.6,23.35]
[1766556464072,0.05831041,120.66,120.64,0.06137473]
[1766556465173,116.1348,120.65,120.57,23.35]
[1766556466175,0.05746031,120.62,120.57,23.35]
[1766556467979,23.1,120.66,120.57,23.35]
[1766556468569,97.9,120.68,120.57,23.35]
[1766556469082,26.26349666,120.69,120.61,0.05746031]
[1766556469285,26.26349666,120.69,120.59,23.35]
[1766556469581,23.1,120.69,120.59,23.35]
[1766556470179,23.1,120.69,120.63,0.06047668]
[1766556471180,0.05272528,120.67,120.63,0.06047668]
[1766556475592,0.00272528,120.67,120.63,23.41047668]
[1766556476782,97.9,120.72,120.63,23.41047668]
[1766556476984,97.9,120.72,120.63,23.35]
[1766556477384,23.1,120.74,120.63,123.6151]
[1766556477587,23.1,120.74,120.64,23.35]
[1766556477790,23.1,120.74,120.67,0.05821551]
[1766556478898,0.05855201,120.72,120.67,0.05821551]
[1766556482105,23.16,120.7,120.59,21.39]
[1766556482694,30.6228,120.7,120.59,21.39]
[1766556482900,30.6228,120.7,120.63,0.0579068]
[1766556483097,0.05665842,120.66,120.63,0.0579068]
[1766556483302,23.16,120.7,120.63,21.4479068]
[1766556483503,224.57399666,120.72,120.63,21.4479068]
[1766556483698,224.57399666,120.72,120.63,21.39]
[1766556484404,0.05724507,120.69,120.66,0.06125502]
[1766556485902,37.35,120.73,120.66,21.45125502]
[1766556486603,116.0659,120.72,120.66,0.06125502]
[1766556486801,0.06331647,120.7,120.66,0.06125502]
[1766556487300,0.06331647,120.7,120.66,21.45125502]
[1766556488509,37.35,120.73,120.66,21.45125502]
[1766556489503,0.06061984,120.71,120.66,21.45125502]
[1766556491211,0.00061984,120.71,120.66,21.45125502]
[1766556494197,23.16,120.8,120.7,21.39]
[1766556494811,23.16,120.83,120.72,21.39]
[1766556495006,23.16,120.83,120.74,21.39]
[1766556495211,23.16,120.83,120.77,0.06311513]
[1766556495212,0.00028721,120.8,120.77,0.06311513]
[1766556495510,0.00028721,120.8,120.77,21.45311513]
[1766556495702,23.16,120.86,120.77,21.45311513]
[1766556495904,142.26459666,120.85,120.77,21.39]
[1766556496213,23.16,120.84,120.77,21.39]
[1766556496602,0.05755304,120.82,120.73,21.39]
[1766556496813,23.16,120.82,120.73,119.25]
[1766556497706,0.06083758,120.79,120.76,0.05643584]
[1766556498202,0.00083758,120.79,120.76,0.05643584]
[1766556503316,0.00083758,120.79,120.71,21.39]
[1766556503518,23.16,120.81,120.71,21.39]
[1766556504312,23.16,120.81,120.75,0.0537829]
[1766556504313,0.05673747,120.77,120.75,0.0537829]
[1766556505516,0.05673747,120.77,120.71,21.39]
[1766556506610,0.05673747,120.77,120.73,0.06056323]
[1766556508912,0.05673747,120.77,120.73,21.45056323]
[1766556511512,120.98,120.82,120.73,116.10816323]
[1766556511719,23.16,120.82,120.74,22.13]
[1766556512609,0.06034406,120.79,120.77,0.05682019]
[1766556513416,23.16,120.82,120.77,0.05682019]
[1766556514412,0.05357698,120.81,120.77,0.05682019]
[1766556515321,97.82,120.86,120.77,23.90682019]
[1766556515510,122.46,120.86,120.77,23.85]
[1766556516324,0.05305354,120.83,120.8,0.05925745]
[1766556518724,24.64,120.89,120.8,23.90925745]
[1766556518918,24.64,120.89,120.8,23.85]
[1766556519724,0.05563975,120.86,120.83,0.05514118]
[1766556521928,24.64,120.89,120.83,0.05514118]
[1766556522828,0.05350388,120.87,120.83,0.05514118]
[1766556527627,24.69350388,120.87,120.79,129.0866]
[1766556527930,24.64,120.87,120.79,129.0866]
[1766556528629,0.05526114,120.84,120.82,0.05483268]
[1766556528832,24.64,120.9,120.82,0.05483268]
[1766556529034,24.64,120.9,120.81,23.85]
[1766556529929,24.64,120.9,120.84,0.06154702]
[1766556530834,0.05655925,120.88,120.84,0.06154702]
[1766556531221,24.69655925,120.88,120.79,23.85]
[1766556531525,24.64,120.88,120.79,23.85]
[1766556532219,0.06021073,120.85,120.78,7.4572]
[1766556532422,0.06021073,120.85,120.78,23.85]
[1766556533436,0.06021073,120.85,120.8,0.05662152]
[1766556536836,0.06021073,120.85,120.8,23.90662152]
[1766556537532,0.06021073,120.85,120.8,31.36252152]
[1766556538332,0.06021073,120.85,120.81,23.85]
[1766556540346,24.70021073,120.85,120.75,23.85]
[1766556540534,24.64,120.85,120.75,23.85]
[1766556541342,0.06268825,120.81,120.79,0.06150708]
[1766556541731,24.88,120.88,120.79,0.06150708]
[1766556541943,24.88,120.88,120.77,25.23]
[1766556542343,24.88,120.88,120.78,25.23]
[1766556542840,0.0581026,120.84,120.82,0.05910942]
[1766556551342,24.88,120.88,120.82,0.05910942]
[1766556552351,24.88,120.85,120.76,25.23]
[1766556553044,24.88,120.85,120.76,32.6884]
[1766556553249,0.05631835,120.82,120.79,0.05680926]
[1766556556751,24.88,120.85,120.79,0.05680926]
[1766556557849,0.05556092,120.83,120.79,0.05680926]
[1766556558350,24.88,120.85,120.79,25.28680926]
[1766556558844,24.88,120.85,120.79,0.05680926]
[1766556559351,0.05990623,120.83,120.79,0.05680926]
[1766556567360,24.88,120.87,120.79,25.28680926]
[1766556567561,24.88,120.87,120.79,25.23]
[1766556567959,122.64,120.89,120.8,25.23]
[1766556568163,24.88,120.88,120.8,25.23]
[1766556568468,0.02127651,120.85,120.83,0.05361382]
[1766556569267,24.88,120.88,120.83,0.05361382]
[1766556570564,24.88,120.88,120.78,25.23]
[1766556571064,24.88,120.88,120.78,32.6872]
[1766556571460,27.58,120.87,120.78,32.6872]
[1766556571658,0.05361382,120.84,120.81,0.05782044]
[1766556571856,27.58,120.87,120.81,0.05782044]
[1766556572069,27.58,120.87,120.77,125.8]
[1766556572952,27.58,120.87,120.77,28.04]
[1766556573162,0.05693395,120.83,120.81,0.00377124]
[1766556579172,27.88,120.86,120.81,0.00377124]
[1766556580171,0.05088649,120.85,120.81,0.00377124]
[1766556582667,27.88,120.89,120.82,28.36]
[1766556583467,27.88,120.89,120.84,0.05571306]
[1766556584670,27.88,120.92,120.84,28.41571306]
[1766556584970,27.88,120.92,120.87,0.05469046]
[1766556586670,97.76,120.93,120.87,0.05469046]
[1766556586870,125.64,120.93,120.87,0.05469046]
[1766556590377,125.64,120.93,120.87,28.41469046]
[1766556590974,125.64,120.93,120.87,35.86629046]
[1766556591181,27.88,120.96,120.88,28.36]
[1766556591380,27.88,120.96,120.91,0.06296702]
[1766556594976,29.20459543,120.96,120.91,0.06296702]
[1766556595177,29.20459543,120.94,120.91,0.00296702]
[1766556596084,29.26065377,120.94,120.91,0.00296702]
[1766556598986,27.93605834,120.94,120.91,0.00296702]
[1766556600284,29.26065377,120.94,120.91,0.00296702]
[1766556601590,0.05605834,120.94,120.91,0.00296702]
[1766556602081,30.82065377,120.94,120.91,0.00296702]
[1766556604483,29.49605834,120.94,120.91,0.00296702]
[1766556605982,0.05605834,120.94,120.91,0.00296702]